bitfinex-derivatives/quotes_SOLF0:USTF0_20250109
["timestamp","ask_amount","ask_price","bid_price","bid_amount"]
[1736390729205,3.36,197.14,197.08,4.03]
[1736390729613,3.36,197.14,197.08,1.4919]
[1736390730215,5.8974,197.14,197.08,1.4919]
[1736390731315,8.6259522,197.21,197.11,13.58539223]
[1736390731519,3.36,197.2,197.11,13.58539223]
[1736390732319,2.5367,197.19,197.12,2.5375]
[1736390732516,3.36,197.2,197.11,13.58539223]
[1736390732818,3.36,197.2,197.12,1.5586]
[1736390733014,3.36,197.2,197.14,13.58539223]
[1736390734012,3.36,197.2,197.15,2.5372]
[1736390734619,3.36,197.2,197.14,13.58539223]
[1736390734822,3.36,197.2,197.13,1.5284]
[1736390735521,3.36,197.2,197.13,4.0659]
[1736390735921,3.36,197.2,197.13,1.5284]
[1736390736323,5.8966,197.2,197.13,4.0659]
[1736390736521,3.36,197.2,197.13,1.5284]
[1736390736724,2.5363,197.22,197.16,2.5371]
[1736390737021,2.5363,197.22,197.13,1.5284]
[1736390737321,79.12,197.23,197.13,1.5284]
[1736390737522,79.12,197.23,197.13,4.0659]
[1736390738113,79.12,197.23,197.13,4.0658]
[1736390738317,13.58539223,197.19,197.12,1.5586]
[1736390738517,3.36,197.18,197.04,15.04949223]
[1736390739419,2.5374,197.14,197.04,15.04949223]
[1736390739616,2.5374,197.14,197.07,13.58539223]
[1736390739818,2.5374,197.14,197.07,16.12369223]
[1736390740516,13.58539223,197.19,197.07,13.58539223]
[1736390740722,8.66075439,197.22,197.05,2.5385]
[1736390740723,2.5377,197.12,197.05,2.5385]
[1736390740919,3.36,197.13,197.05,2.5385]
[1736390741224,3.36,197.13,197.04,1.4641]
[1736390742124,2.5379,197.1,197.04,1.4641]
[1736390743317,3.36,197.13,197.07,2.5382]
[1736390743724,3.36,197.13,197.04,15.04949223]
[1736390745127,9.65235974,197.7,197.07,13.58539223]
[1736390745128,400.34685147,197.37,197.07,13.58539223]
[1736390745329,13.58539223,197.21,197.07,13.58539223]
[1736390745827,2.537,197.17,197.07,13.58539223]
[1736390746130,5.897,197.17,197.07,13.58539223]
[1736390746320,5.897,197.17,197.1,2.5379]
[1736390746724,2.5378,197.11,197.04,1.4641]
[1736390746928,3.36,197.12,197.04,4.0026]
[1736390747834,3.36,197.12,197.04,1.4641]
[1736390748032,2.5379,197.1,197.05,2.5385]
[1736390748935,16.94539223,197.12,197.04,1.4641]
[1736390749132,13.58539223,197.09,197.02,1.4974]
[1736390749335,2.5389,197.02,196.97,2.5395]
[1736390750036,2.5389,197.02,196.98,2.5394]
[1736390750240,2.5389,197.02,196.94,3.0058]
[1736390751044,2.5388,197.03,196.97,2.5394]
[1736390751343,3.36,197.05,196.94,3.0058]
[1736390751841,13.58539223,197.03,196.94,3.0058]
[1736390752237,2.5393,197.0,196.94,5.5456]
[1736390752438,3.36,196.99,196.94,3.0058]
[1736390754043,3.36,196.99,196.95,2.5397]
[1736390754237,3.36,196.99,196.88,2.9431]
[1736390754439,13.58539223,196.97,196.88,2.9431]
[1736390755342,2.5399,196.94,196.9,2.5403]
[1736390755644,3.36,196.94,196.88,2.9431]
[1736390757345,3.36,196.94,196.9,2.5405]
[1736390759041,3.36,196.94,196.88,2.9431]
[1736390759338,3.36,196.94,196.92,2.5402]
[1736390759539,13.58539223,196.97,196.92,2.5402]
[1736390759741,3.36,196.96,196.92,2.5402]
[1736390760241,3.36,196.96,196.88,2.9431]
[1736390760445,3.36,196.96,196.88,1.4599]
[1736390760744,13.58539223,196.94,196.88,1.4599]
[1736390760946,13.58539223,196.94,196.83,2.995]
[1736390761239,13.58539223,196.94,196.83,4.5365]
[1736390761443,16.12549223,196.94,196.87,2.5407]
[1736390761642,13.58539223,196.94,196.83,4.5365]
[1736390762445,13.58539223,196.94,196.9,2.5404]
[1736390763541,13.58539223,196.94,196.89,2.5406]
[1736390763745,13.58539223,196.94,196.83,4.5365]
[1736390764249,2.5401,196.93,196.87,2.5407]
[1736390764540,13.58539223,196.94,196.83,4.5365]
[1736390765747,13.58539223,196.91,196.85,2.541]
[1736390766447,16.12569223,196.91,196.85,2.541]
[1736390766840,16.12569223,196.91,196.83,4.5365]
[1736390767050,3.36,196.9,196.86,2.5409]
[1736390767943,3.36,196.9,196.85,2.5411]
[1736390768141,3.36,196.9,196.83,4.5365]
[1736390768545,3.36,196.9,196.85,2.5411]
[1736390768944,5.9005,196.9,196.85,2.5411]
[1736390769747,2.5406,196.89,196.84,2.5412]
[1736390769948,13.58539223,196.88,196.77,1.4842]
[1736390770141,2.541,196.86,196.77,4.6015]
[1736390770745,13.58539223,196.88,196.81,2.5416]
[1736390770746,19.48659223,196.85,196.81,2.5416]
[1736390771141,3.36,196.85,196.81,2.5416]
[1736390771851,3.36,196.85,196.77,4.6015]
[1736390772954,3.36,196.85,196.77,3.1173]
[1736390773349,3.36,196.85,196.79,13.58539223]
[1736390773550,3.36,196.85,196.84,2.5412]
[1736390773752,16.94539223,196.89,196.79,13.58539223]
[1736390774853,19.48599223,196.89,196.79,13.58539223]
[1736390775046,16.94539223,196.89,196.79,13.58539223]
[1736390776446,2.5407,196.88,196.77,3.1173]
[1736390776654,16.94539223,196.89,196.82,2.5414]
[1736390776851,2.5409,196.87,196.82,2.5414]
[1736390777356,16.94539223,196.89,196.82,2.5414]
[1736390777552,2.5409,196.87,196.82,2.5414]
[1736390777856,16.94539223,196.89,196.81,2.5416]
[1736390778058,2.5411,196.86,196.77,3.1173]
[1736390778248,16.94539223,196.89,196.77,3.1173]
[1736390778651,2.5408,196.88,196.8,2.5417]
[1736390778861,2.5408,196.88,196.77,3.1173]
[1736390779152,3.36,196.89,196.79,13.58539223]
[1736390779748,5.9007,196.89,196.84,2.5412]
[1736390780954,16.94539223,196.89,196.82,2.5414]
[1736390781159,16.94539223,196.89,196.77,3.1173]
[1736390781560,2.5409,196.87,196.8,2.5417]
[1736390781759,2.5409,196.87,196.77,3.1173]
[1736390782462,16.94539223,196.89,196.77,3.1173]
[1736390782763,2.541,196.86,196.77,3.1173]
[1736390782959,16.94539223,196.89,196.77,3.1173]
[1736390783259,2.5414,196.83,196.77,3.1173]
[1736390783658,3.36,196.84,196.77,3.1173]
[1736390783857,5.9012,196.84,196.79,2.5419]
[1736390785555,3.36,196.84,196.8,2.5417]
[1736390785762,3.36,196.84,196.77,3.1173]
[1736390786556,3.36,196.84,196.82,2.5415]
[1736390786859,13.58539223,196.93,196.78,13.58539223]
[1736390787164,3.36,196.92,196.81,13.58539223]
[1736390787760,2.5403,196.91,196.81,13.58539223]
[1736390787961,3.36,196.92,196.81,13.58539223]
[1736390789263,2.5404,196.91,196.81,13.58539223]
[1736390789464,3.36,196.92,196.81,13.58539223]
[1736390789764,2.5405,196.9,196.86,2.5409]
[1736390790061,2.5405,196.9,196.81,13.58539223]
[1736390790263,2.5405,196.9,196.85,2.5411]
[1736390790463,2.5408,196.88,196.78,13.58539223]
[1736390790765,13.58539223,196.9,196.78,13.58539223]
[1736390792064,2.5407,196.89,196.84,2.5411]
[1736390792266,3.36,196.92,196.74,15.12019223]
[1736390792267,13.58539223,196.87,196.74,15.12019223]
[1736390792464,13.58539223,196.84,196.75,3.0688]
[1736390792657,3.36,196.83,196.75,1.5157]
[1736390792963,13.58539223,196.81,196.69,3.1385]
[1736390793567,2.5419,196.79,196.74,2.5425]
[1736390794164,2.5419,196.79,196.69,3.1385]
[1736390794460,13.58539223,196.81,196.69,3.1385]
[1736390794461,5.902,196.78,196.72,2.5427]
[1736390794764,19.48739223,196.78,196.72,2.5427]
[1736390794965,19.48739223,196.78,196.73,2.5426]
[1736390795468,16.94539223,196.78,196.73,2.5426]
[1736390795861,16.94539223,196.78,196.52,84.54451556]
[1736390796056,16.12789223,196.74,196.61,15.15829223]
[1736390796867,2.5427,196.73,196.67,2.5434]
[1736390797067,5.9027,196.73,196.67,2.5434]
[1736390797557,5.9027,196.73,196.68,2.5433]
[1736390797558,3.36,196.73,196.68,2.5433]
[1736390798159,2.5427,196.73,196.66,2.5435]
[1736390798365,3.36,196.76,196.64,13.58539223]
[1736390798566,3.36,196.76,196.65,1.6002]
[1736390798764,3.36,196.76,196.71,2.5429]
[1736390799262,5.9023,196.76,196.69,2.543]
[1736390799466,3.36,196.76,196.65,1.6002]
[1736390799768,16.12779223,196.75,196.68,2.5433]
[1736390802761,13.58539223,196.75,196.68,2.5433]
[1736390802969,2.5425,196.74,196.68,2.5433]
[1736390803370,5.9023,196.76,196.69,2.5431]
[1736390803673,3.36,196.76,196.66,13.58539223]
[1736390804158,3.36,196.76,196.71,2.5429]
[1736390804970,3.36,196.76,196.65,1.6002]
[1736390805267,13.58539223,196.69,196.61,1.5729]
[1736390805471,3.36,196.68,196.61,1.5729]
[1736390806063,3.36,196.68,196.63,2.5439]
[1736390806969,3.36,196.68,196.61,1.5729]
[1736390809074,5.9033,196.68,196.63,2.5438]
[1736390809679,3.36,196.68,196.63,2.5438]
[1736390812480,13.58539223,196.66,196.63,2.5438]
[1736390813476,13.58539223,196.66,196.61,2.5442]
[1736390813877,13.58539223,196.63,196.59,2.5443]
[1736390814077,16.94539223,196.63,196.56,1.5599]
[1736390814483,16.94539223,196.63,196.58,2.5446]
[1736390817177,13.58539223,196.6,196.53,1.5431]
[1736390818078,16.12969223,196.6,196.55,2.5449]
[1736390818277,13.58539223,196.6,196.55,2.5449]
[1736390818473,13.58539223,196.6,196.53,1.5431]
[1736390819980,16.12969223,196.6,196.55,2.545]
[1736390820284,13.58539223,196.6,196.53,1.5431]
[1736390820788,2.5445,196.59,196.54,2.5451]
[1736390821086,3.36,196.58,196.54,2.5451]
[1736390821481,16.13019223,196.57,196.51,2.5454]
[1736390822587,16.13019223,196.57,196.52,2.5453]
[1736390822881,13.58539223,196.57,196.49,1.5522]
[1736390823188,13.58539223,196.57,196.52,2.5454]
[1736390825985,8.53496422,196.69,196.49,1.5522]
[1736390826184,13.58539223,196.65,196.52,13.58539223]
[1736390826486,3.36,196.64,196.53,1.5106]
[1736390826884,5.9038,196.64,196.53,1.5106]
[1736390827082,3.36,196.64,196.53,1.5106]
[1736390827278,2.5443,196.61,196.55,2.545]
[1736390827489,3.36,196.64,196.49,1.5522]
[1736390827490,13.58539223,196.59,196.49,1.5522]
[1736390827690,3.36,196.58,196.49,1.5522]
[1736390827892,13.58539223,196.56,196.49,1.5522]
[1736390828488,2.545,196.55,196.49,2.5457]
[1736390828692,2.545,196.55,196.46,191.0]
[1736390828889,2.545,196.55,196.44,1.5931]
[1736390829085,13.58539223,196.56,196.44,1.5931]
[1736390829288,16.13029223,196.56,196.5,2.5456]
[1736390829986,3.36,196.55,196.5,2.5456]
[1736390830488,13.58539223,196.56,196.44,1.5931]
[1736390830696,13.58539223,196.53,196.44,1.5931]
[1736390831688,2.5456,196.51,196.45,2.5461]
[1736390832195,2.5456,196.51,196.46,2.5461]
[1736390832693,13.58539223,196.53,196.44,1.5931]
[1736390832996,13.58539223,196.5,196.41,194.1082]
[1736390833295,3.36,196.49,196.41,194.1082]
[1736390833789,5.9058,196.49,196.43,2.5465]
[1736390834199,3.36,196.49,196.41,3.1082]
[1736390834397,2.546,196.48,196.42,2.5466]
[1736390834791,3.36,196.49,196.41,3.1082]
[1736390834989,3.36,196.49,196.45,2.5463]
[1736390836095,13.58539223,196.5,196.45,2.5463]
[1736390836292,3.36,196.49,196.48,2.5459]
[1736390836498,3.36,196.49,196.41,3.1082]
[1736390836899,2.546,196.48,196.42,2.5467]
[1736390837301,13.58539223,196.51,196.41,3.1082]
[1736390837601,3.36,196.5,196.41,3.1082]
[1736390838192,3.36,196.5,196.45,2.5462]
[1736390838702,3.36,196.5,196.41,3.1082]
[1736390839301,2.5458,196.49,196.44,2.5464]
[1736390839801,3.36,196.5,196.44,2.5464]
[1736390839994,3.36,196.5,196.41,1.5962]
[1736390840199,3.36,196.5,196.46,2.5461]
[1736390840996,3.36,196.5,196.41,1.5962]
[1736390841401,16.13059223,196.54,196.41,1.5962]
[1736390841703,3.36,196.53,196.41,1.5962]
[1736390842295,3.36,196.53,196.48,2.5458]
[1736390842495,16.13059223,196.54,196.48,2.5458]
[1736390842703,19.49059223,196.54,196.49,2.5458]
[1736390843897,16.94539223,196.54,196.5,2.5456]
[1736390844901,16.94539223,196.54,196.49,2.5457]
[1736390845206,16.94539223,196.54,196.43,1.4733]
[1736390845606,16.94539223,196.54,196.47,2.546]
[1736390845812,13.58539223,196.51,196.43,1.4733]
[1736390846108,19.49099223,196.51,196.45,2.5463]
[1736390846903,16.94539223,196.51,196.47,2.546]
[1736390847204,13.58539223,196.54,196.43,1.4733]
[1736390847400,3.36,196.55,196.46,2.5461]
[1736390847599,3.36,196.55,196.47,1.5469]
[1736390848802,5.905,196.55,196.5,2.5455]
[1736390849911,3.36,196.55,196.5,2.5455]
[1736390850111,3.36,196.55,196.51,2.5455]
[1736390851007,3.36,196.55,196.5,2.5456]
[1736390851906,13.58539223,196.54,196.48,2.5458]
[1736390852106,13.58539223,196.54,196.47,1.5469]
[1736390852403,3.36,196.55,196.43,192.4733]
[1736390852404,13.58539223,196.51,196.43,192.4733]
[1736390852714,13.58539223,196.51,196.46,2.5461]
[1736390852907,13.58539223,196.48,196.35,191.0]
[1736390853113,13.58539223,196.44,196.35,194.0758]
[1736390854124,16.13179223,196.44,196.38,2.5472]
[1736390854517,13.58539223,196.44,196.38,2.5472]
[1736390855218,13.58539223,196.44,196.39,2.547]
[1736390855614,3.36,196.43,196.39,2.547]
[1736390860321,13.58539223,196.44,196.35,194.0758]
[1736390860525,3.36,196.44,196.41,2.5468]
[1736390862416,3.36,196.44,196.37,2.5472]
[1736390862620,3.36,196.44,196.35,194.0758]
[1736390863225,3.36,196.44,196.39,2.5469]
[1736390863428,3.36,196.44,196.35,194.0758]
[1736390864118,3.36,196.44,196.4,2.5469]
[1736390864820,3.36,196.44,196.41,2.5468]
[1736390865416,5.9061,196.46,196.41,2.5468]
[1736390865621,3.36,196.46,196.36,13.58539223]
[1736390866322,3.36,196.46,196.42,2.5466]
[1736390866522,3.36,196.46,196.36,13.58539223]
[1736390867027,3.36,196.46,196.42,2.5466]
[1736390867226,3.36,196.46,196.36,13.58539223]
[1736390867227,3.36,196.49,196.36,204.58539223]
[1736390867525,3.36,196.49,196.39,13.58539223]
[1736390867727,2.5459,196.48,196.4,1.5061]
[1736390868027,3.36,196.49,196.4,1.5061]
[1736390868228,2.5461,196.47,196.44,2.5464]
[1736390869226,3.36,196.49,196.44,2.5464]
[1736390869227,2.5459,196.48,196.44,2.5464]
[1736390869422,3.36,196.49,196.4,4.0529]
[1736390869627,3.36,196.49,196.4,1.5061]
[1736390870029,2.5463,196.45,196.39,2.547]
[1736390870326,13.58539223,196.47,196.39,2.547]
[1736390870524,13.58539223,196.47,196.36,191.0]
[1736390870725,3.36,196.49,196.38,2.5472]
[1736390870726,13.58539223,196.44,196.38,2.5472]
[1736390870923,16.94539223,196.44,196.38,2.5472]
[1736390871826,13.58539223,196.41,196.35,3.0758]
[1736390872531,3.36,196.44,196.35,3.0758]
[1736390872734,3.36,196.48,196.35,6.4358]
[1736390873135,5.906,196.48,196.42,2.5466]
[1736390873334,3.36,196.48,196.42,2.5466]
[1736390873734,3.36,196.48,196.35,6.4358]
[1736390873931,3.36,196.48,196.37,13.58539223]
[1736390874132,3.36,196.48,196.38,1.4546]
[1736390875135,3.36,196.48,196.44,2.5464]
[1736390875335,3.36,196.48,196.38,1.4546]
[1736390875837,13.58539223,196.49,196.44,2.5463]
[1736390876135,13.58539223,196.49,196.38,1.4546]
[1736390876333,3.36,196.5,196.4,13.58539223]
[1736390876638,3.36,196.5,196.45,2.5462]
[1736390876934,82.8,196.51,196.4,13.58539223]
[1736390877936,85.3455,196.51,196.4,13.58539223]
[1736390878138,82.8,196.51,196.4,13.58539223]
[1736390878331,2.5458,196.49,196.44,2.5464]
[1736390878533,3.36,196.5,196.44,2.5464]
[1736390879535,2.5458,196.49,196.44,2.5464]
[1736390882337,2.5458,196.49,196.4,13.58539223]
[1736390882539,5.9057,196.5,196.45,2.5463]
[1736390884742,3.36,196.5,196.45,2.5463]
[1736390885940,13.58539223,196.49,196.38,1.4546]
[1736390886645,2.546,196.48,196.38,1.4546]
[1736390887241,13.58539223,196.49,196.38,1.4546]
[1736390887447,5.9056,196.5,196.38,1.4546]
[1736390888047,3.36,196.5,196.4,13.58539223]
[1736390888448,3.36,196.51,196.4,13.58539223]
[1736390888643,3.36,196.51,196.49,2.5457]
[1736390888844,13.58539223,196.55,196.43,13.58539223]
[1736390889048,13.58539223,196.55,196.44,3.0689]
[1736390889255,16.94539223,196.55,196.44,3.0689]
[1736390889550,16.94539223,196.55,196.45,1.5736]
[1736390889944,2.5451,196.54,196.45,1.5736]
[1736390890340,16.94539223,196.55,196.45,1.5736]
[1736390890341,19.49039223,196.55,196.5,2.5455]
[1736390891947,3.36,196.55,196.51,2.5454]
[1736390892153,3.36,196.56,196.51,2.5454]
[1736390892754,3.36,196.56,196.45,1.5736]
[1736390892953,13.58539223,196.54,196.44,3.0689]
[1736390893154,13.58539223,196.51,196.44,3.0689]
[1736390893348,16.92539223,196.51,196.44,3.0689]
[1736390893956,19.47089223,196.51,196.45,2.5462]
[1736390894349,16.92539223,196.51,196.44,3.0689]
[1736390894554,16.92539223,196.51,196.46,2.546]
[1736390895753,16.92539223,196.51,196.44,3.0689]
[1736390895956,16.92539223,196.51,196.44,5.6152]
[1736390896557,2.5456,196.5,196.45,2.5462]
[1736390897158,16.92539223,196.51,196.44,3.0689]
[1736390897459,19.47089223,196.51,196.46,2.5461]
[1736390899662,16.92539223,196.51,196.48,2.5459]
[1736390900257,16.92539223,196.51,196.46,2.546]
[1736390900457,13.58539223,196.48,196.39,1.537]
[1736390900958,13.58539223,196.45,196.34,3.137]
[1736390901158,3.34,196.44,196.34,3.137]
[1736390901461,13.58539223,196.42,196.34,3.137]
[1736390901865,13.58539223,196.39,196.34,3.137]
[1736390902057,13.58539223,196.39,196.34,1.5593]
[1736390902362,13.58539223,196.42,196.34,1.5593]
[1736390902569,13.58539223,196.42,196.37,2.5473]
[1736390902759,13.58539223,196.42,196.34,1.5593]
[1736390903963,2.547,196.4,196.34,1.5593]
[1736390904365,3.34,196.39,196.34,1.5593]
[1736390904665,3.34,196.39,196.34,4.1069]
[1736390906161,3.34,196.39,196.34,1.5593]
[1736390906365,3.34,196.39,196.35,2.5475]
[1736390907659,3.34,196.39,196.34,4.107]
[1736390908166,3.34,196.39,196.35,2.5476]
[1736390909069,3.34,196.39,196.34,4.107]
[1736390909459,3.34,196.39,196.34,1.5593]
[1736390910166,3.34,196.39,196.37,2.5472]
[1736390910367,3.34,196.39,196.34,1.5593]
[1736390911166,3.34,196.39,196.36,2.5474]
[1736390911964,3.34,196.39,196.34,1.5593]
[1736390912172,79.44,196.47,196.35,13.58539223]
[1736390912370,79.44,196.47,196.35,15.09249223]
[1736390912571,79.44,196.47,196.42,2.5466]
[1736390913162,79.44,196.47,196.39,3.34]
[1736390913367,79.44,196.47,196.43,8.76109988]
[1736390913567,8.76109988,196.46,196.39,12.10109988]
[1736390913967,8.76109988,196.46,196.41,2.5467]
[1736390914270,8.76109988,196.46,196.41,8.76109988]
[1736390915172,8.76109988,196.46,196.42,2.5466]
[1736390915372,2.5461,196.47,196.42,2.5466]
[1736390917273,13.69410812,196.5,196.42,2.5466]
[1736390917472,2.5459,196.49,196.43,2.5465]
[1736390917879,13.69410812,196.5,196.43,2.5465]
[1736390918076,2.5459,196.48,196.43,2.5465]
[1736390918275,2.5459,196.48,196.42,2.5466]
[1736390922178,13.69410812,196.5,196.39,3.34]
[1736390922384,2.5457,196.5,196.44,2.5464]
[1736390928389,16.23980812,196.5,196.44,2.5464]
[1736390929084,16.23980812,196.5,196.45,2.5462]
[1736390931585,8.60277649,196.56,196.44,3.34]
[1736390931790,8.60277649,196.56,196.5,2.5456]
[1736390932391,3.34,196.57,196.5,2.5456]
[1736390933190,2.545,196.56,196.5,2.5456]
[1736390933584,2.545,196.55,196.5,2.5456]
[1736390933888,13.69410812,196.55,196.45,1.579]
[1736390934088,13.69410812,196.55,196.48,2.5459]
[1736390935286,8.75969572,196.52,196.48,2.5459]
[1736390936593,8.75969572,196.5,196.45,1.579]
[1736390936788,8.75969572,196.48,196.45,2.5462]
[1736390941789,8.75969572,196.48,196.42,10.22289572]
[1736390941992,8.75969572,196.48,196.46,2.5461]
[1736390945392,11.30559572,196.48,196.44,2.5462]
[1736390946090,8.75969572,196.46,196.44,2.5462]
[1736390948591,8.75969572,196.48,196.45,2.5461]
[1736390948896,8.75969572,196.5,196.42,8.75969572]
[1736390949497,8.75969572,196.5,196.42,10.32239572]
[1736390949893,8.75969572,196.5,196.47,2.5458]
[1736390953999,8.75969572,196.5,196.48,2.5456]
[1736390954199,12.09969572,196.52,196.44,8.75969572]
[1736390954396,8.75969572,196.5,196.42,11.80969572]
[1736390955098,8.75969572,196.5,196.47,2.5458]
[1736390957605,12.09969572,196.52,196.44,8.75969572]
[1736390958004,8.75969572,196.5,196.42,11.80969572]
[1736390958604,8.75969572,196.5,196.47,2.5457]
[1736390959905,8.75969572,196.5,196.48,2.5456]
[1736390961006,8.75969572,196.5,196.42,3.05]
[1736390961205,8.75969572,196.48,196.42,3.05]
[1736390963307,8.75969572,196.48,196.45,2.546]
[1736390963508,8.75969572,196.5,196.42,3.05]
[1736390965108,8.75969572,196.5,196.47,2.5457]
[1736390966914,8.75969572,196.5,196.42,3.05]
[1736390967114,8.75969572,196.5,196.48,2.5457]
[1736390967514,8.75969572,196.5,196.42,3.05]
[1736390968716,8.75969572,196.48,196.42,3.05]
[1736390969212,8.75969572,196.48,196.44,2.5461]
[1736390969911,8.75969572,196.46,196.34,7.04537629]
[1736390970112,8.75969572,196.42,196.36,1.4619]
[1736390971418,8.75969572,196.44,196.36,10.22159572]
[1736390971720,3.34,196.46,196.38,8.75969572]
[1736390971918,12.09969572,196.46,196.44,2.5461]
[1736390972117,3.34,196.46,196.42,8.75969572]
[1736390972314,3.34,196.5,196.44,8.75969572]
[1736390972513,12.09969572,196.51,196.44,8.75969572]
[1736390972811,12.09969572,196.51,196.48,2.5457]
[1736390973619,8.63496275,196.57,196.46,8.75969572]
[1736390973918,3.34,196.54,196.48,8.75969572]
[1736390974215,3.34,196.54,196.51,2.5452]
[1736390974813,8.75969572,196.56,196.51,2.5452]
[1736390975013,14.64449572,196.56,196.5,2.5454]
[1736390976420,8.75969572,196.54,196.5,2.5454]
[1736390983426,8.75969572,196.54,196.48,8.75969572]
[1736390984628,8.75969572,196.54,196.51,2.5453]
[1736390986431,8.63606283,196.59,196.49,3.34]
[1736390986635,8.63606283,196.59,196.55,8.75969572]
[1736390986931,8.63606283,196.59,196.58,2.5444]
[1736390987332,12.09969572,196.63,196.56,1.4859]
[1736390988035,12.09969572,196.63,196.58,2.5444]
[1736390989736,5.8836,196.64,196.59,2.5442]
[1736390989934,8.75969572,196.63,196.59,2.5442]
[1736390991836,8.75969572,196.61,196.57,2.5445]
[1736390992041,8.75969572,196.59,196.56,1.4859]
[1736390992241,8.75969572,196.59,196.51,8.75969572]
[1736390993036,8.75969572,196.59,196.55,2.5447]
[1736390993236,3.34,196.64,196.53,8.75969572]
[1736390993440,3.34,196.64,196.57,8.75969572]
[1736390993638,3.34,196.64,196.62,2.5438]
[1736390995131,8.75969572,196.65,196.62,2.5438]
[1736390996340,11.30299572,196.67,196.62,2.5438]
[1736390996536,8.75969572,196.68,196.63,2.5436]
[1736390999542,8.75969572,196.68,196.64,2.5435]
[1736391001639,8.75969572,196.68,196.63,2.5437]
[1736391003144,3.32,196.69,196.65,2.5435]
[1736391003339,8.75969572,196.7,196.63,8.75969572]
[1736391003942,8.75969572,196.7,196.66,2.5433]
[1736391004544,3.32,196.71,196.61,11.86959572]
[1736391004736,8.75969572,196.68,196.63,2.5437]
[1736391005839,8.75969572,196.68,196.61,11.86959572]
[1736391006742,8.75969572,196.68,196.63,2.5437]
[1736391006950,0.2021,196.81,196.63,8.75969572]
[1736391007149,8.75969572,196.71,196.63,8.75969572]
[1736391007446,8.75969572,196.71,196.68,2.5431]
[1736391007648,8.75969572,196.73,196.65,8.75969572]
[1736391008249,8.75969572,196.73,196.69,2.5429]
[1736391009452,2.5426,196.72,196.66,2.5432]
[1736391009656,8.75969572,196.71,196.63,8.75969572]
[1736391009843,3.32,196.74,196.63,8.75969572]
[1736391009844,8.75969572,196.69,196.63,8.75969572]
[1736391010044,11.30279572,196.69,196.64,2.5436]
[1736391010553,3.32,196.74,196.61,15.18959572]
[1736391010754,8.75969572,196.7,196.63,8.75969572]
[1736391011451,11.30259572,196.7,196.65,2.5435]
[1736391012155,8.75969572,196.68,196.61,6.4299]
[1736391012346,8.75969572,196.66,196.61,3.1099]
[1736391012551,8.75969572,196.66,196.61,1.5981]
[1736391012952,8.75969572,196.66,196.62,2.5438]
[1736391016654,2.5435,196.65,196.6,4.0042]
[1736391016854,12.07969572,196.64,196.6,4.0042]
[1736391017054,3.32,196.63,196.6,4.0042]
[1736391017260,11.30359572,196.62,196.57,2.5445]
[1736391017559,3.32,196.63,196.6,8.75969572]
[1736391018760,3.32,196.63,196.61,2.544]
[1736391020763,3.32,196.63,196.59,2.5442]
[1736391021263,3.32,196.63,196.58,8.75969572]
[1736391021463,3.32,196.63,196.61,2.5439]
[1736391021759,0.2032,196.74,196.6,8.75969572]
[1736391021967,11.30269572,196.69,196.6,8.75969572]
[1736391022463,11.30269572,196.69,196.64,2.5436]
[1736391022968,12.07969572,196.71,196.64,8.75969572]
[1736391023263,12.07969572,196.71,196.66,2.5433]
[1736391024462,12.07969572,196.71,196.65,2.5435]
[1736391026067,2.5428,196.7,196.65,2.5435]
[1736391026262,12.07969572,196.71,196.65,2.5435]
[1736391026263,8.75969572,196.69,196.65,2.5435]
[1736391026458,8.75969572,196.69,196.62,8.75969572]
[1736391026663,8.75969572,196.69,196.65,2.5435]
[1736391028265,3.32,196.71,196.67,2.5432]
[1736391028266,14.62239572,196.71,196.67,2.5432]